Cogmind - Beta 10.2 @@@ ROGUE MODE // 2021.04.03 @ 23:34:35 Player: Dendrocnid Result: Destroyed by YI-UF0 with YI-UF0's Doublenader Performance ------------- Evolutions (0) 0 Regions Visited (2) 400 Robots Destroyed (13) 65 Value Destroyed (427) 427 Prototype IDs (0) 0 Alien Tech Used (0) 0 Bonus (0) 0 TOTAL SCORE: 892 Bonus ------- None Cogmind --------- Core Integrity 0/250 Matter 175/300 Energy 100/100 System Corruption 0% Temperature Cool (0) Movement Core (150) Ox2 Location -10/Mines Parts ------- > --- POWER (1) -------- (None) > --- PROPULSION (2) --- (None) > --- UTILITY (2) ------ Improved Heat Sink Medium Storage Unit > --- WEAPON (2) ------- (None) > --- INVENTORY (8) ---- Ion Engine Ion Engine Light Ion Engine Heat Sink Peak State ------------ > --- POWER ------------ Ion Engine > --- PROPULSION ------- Aluminum Leg Aluminum Leg > --- UTILITY ---------- Improved Heat Sink Medium Storage Unit > --- WEAPON ----------- EM Pulse Gun Assault Rifle > --- INVENTORY -------- Ion Engine Light Ion Engine Wheel Compact Wheel Heat Sink Grenade Launcher [Rating: 9] Favorites ----------- Power Ion Engine Engine Ion Engine Propulsion Aluminum Leg Leg Aluminum Leg Wheel Compact Wheel Utility Medium Storage Unit Device Improved Heat Sink Storage Medium Storage Unit Weapon EM Pulse Gun Energy Gun EM Pulse Gun Ballistic Gun Assault Rifle Launcher Grenade Launcher Build | -11 -10 -10 ------- Run | Scr Mat Min Slots Evolved . | . . . Power . | . . . Propulsion . | . . . Utility . | . . . Weapon . | . . . Parts Attached 14 | 6 2 6 Power 1 | 1 . . Engine 1 | 1 . . Core . | . . . Reactor . | . . . Propulsion 4 | 2 . 2 Treads . | . . . Leg 2 | 2 . . Wheel 2 | . . 2 Hover . | . . . Flight . | . . . Utility 4 | 1 2 1 Device 2 | . 1 1 Storage 2 | 1 1 . Processor . | . . . Hackware . | . . . Protection . | . . . Artifact . | . . . Weapon 5 | 2 . 3 Energy Gun 2 | 2 . . Energy Cannon . | . . . Ballistic Gun 1 | . . 1 Ballistic Cannon . | . . . Launcher 2 | . . 2 Special Weapon . | . . . Impact Weapon . | . . . Slashing Weapon . | . . . Piercing Weapon . | . . . Special Melee Weapon . | . . . Unidentified Prototypes . | . . . Parts Lost 10 | . . 10 Power 1 | . . 1 Propulsion 4 | . . 4 Utility . | . . . Weapon 5 | . . 5 Highest Loss Streak 5 | . . 5 Average Slot Usage (%) 88 | . 95 82 Engine 10 | . 14 8 Leg 20 | . 28 14 Wheel 6 | . . 11 Device 12 | . 10 14 Storage 14 | . 14 14 Energy Gun 17 | . 28 9 Ballistic Gun 2 | . . 5 Launcher 2 | . . 5 Naked Turns . | . . . Heaviest Build 18 | 13 18 18 Greatest Support 26 | 20 20 26 Greatest Overweight (x) . | . . . Average Overweight (x) . | . . . Largest Inventory Capacity 8 | 6 8 8 Average Capacity 6 | 4 6 8 Most Carried 6 | 4 6 6 Average Carried 4 | 2 5 5 Final Capacity 8 | 6 8 8 Final Carried 6 | 4 6 4 Class Distribution -------------------- 100% | Mutant Dominant Class ---------------- Mutant | -10/Materials Mutant | -10/Mines Resources | -11 -10 -10 ----------- Run | Scr Mat Min Matter Collected 335 | 230 50 55 Remotely . | . . . Salvage Created 441 | . 210 231 Parts 20 | . 16 4 Haulers Intercepted 1 | . 1 . Recyclers Shooed . | . . . Parts Field Recycled . | . . . Retrieved Matter . | . . . Parts Self-Destructed . | . . . Prevented . | . . . Kills | -11 -10 -10 ------- Run | Scr Mat Min Combat Hostiles Destroyed 12 | . 6 6 Guns 8 | . 5 3 AOE 4 | . 1 3 Classes Destroyed 3 | . 3 . Hauler 1 | . 1 . Swarmer 3 | . 3 . Grunt 9 | . 3 6 Best Kill Streak 4 | . 4 2 Combat Bots Only 4 | . 4 2 Max Kills in Single Turn 2 | . 2 1 Gunslinging 1 | . 1 . Exploded 1 | . 1 1 Melee . | . . . Uniques/NPCs Destroyed . | . . . Combat | -11 -10 -10 -------- Run | Scr Mat Min Damage Taken 930 | . 188 742 Core 252 | . 47 205 Absorbed by Shields . | . . . Core Remaining (%) 100 | 100 . . Volleys Fired 54 | . 15 39 Largest 2 | . 2 2 Hottest 80 | . 80 80 Shots Fired 80 | . 30 50 Gun 67 | . 30 37 Cannon . | . . . Launcher 13 | . . 13 Special . | . . . Kinetic 10 | . . 10 Thermal . | . . . Explosive 13 | . . 13 Electromagnetic 57 | . 30 27 Robot Hit Streak 10 | . 8 10 Robot Miss Streak 3 | . 2 3 Penetration Max . | . . . Secondary Targets 1 | . 1 . Max Gunslinging Chain 1 | . 1 . Shots Hit Robots 57 | . 21 36 Core Hits 29 | . 10 19 Critical Hits . | . . . Critical Kills . | . . . Critical Parts Destroyed . | . . . Melee Attacks . | . . . Impact . | . . . Slashing . | . . . Piercing . | . . . Sneak Attacks . | . . . Combat Hostiles . | . . . Follow-up Attacks . | . . . Damage Inflicted 1055 | . 337 718 Guns 588 | . 273 315 Cannons . | . . . Explosions 467 | . 64 403 Melee . | . . . Ramming . | . . . Kinetic 92 | . . 92 Thermal 117 | . 64 53 Explosive 350 | . . 350 Electromagnetic 496 | . 273 223 Impact . | . . . Slashing . | . . . Piercing . | . . . Highest Corruption . | . . . Average Corruption . | . . . Corruption Purged . | . . . Overload Shots . | . . . Overflow Damage 15 | . 2 13 Projectiles . | . . . Explosions 15 | . 2 13 Melee . | . . . Knockbacks . | . . . Impact . | . . . Kinetic . | . . . Secondary . | . . . Self-Inflicted Damage 69 | . . 69 Shots 2 | . . 2 Rammed . | . . . Targets Rammed . | . . . Kicked . | . . . Crushed . | . . . Highest Temperature 201 | . 201 22 Average Temperature 83 | . 96 7 Received Heat Transfer 330 | . 75 255 Siege Activations . | . . . Robots Corrupted . | . . . Combat Hostiles . | . . . Parts Fried 1 | . . 1 Impact Corruptions . | . . . Robots Melted . | . . . Combat Hostiles . | . . . Parts Melted . | . . . Heat Transferred 150 | . 100 50 Parts Sabotaged . | . . . Parts Stolen . | . . . Parts Stripped . | . . . Power Chain Reactions 2 | . 1 1 Missiles Intercepted . | . . . Alert | -11 -10 -10 ------- Run | Scr Mat Min Peak Influence 248 | . 201 248 Initial 78 | . . 78 Average 135 | . 133 172 Maximum Alert Level 1 | . 1 1 Low Security (%) 77 | 100 81 67 Level 1 22 | . 18 32 Level 2 . | . . . Level 3 . | . . . Level 4 . | . . . Level 5 . | . . . High Security . | . . . Max Security . | . . . Squads Dispatched . | . . . Investigation . | . . . Extermination . | . . . Reinforcement . | . . . Assault . | . . . Garrison . | . . . Intercept . | . . . Construction Impeded . | . . . Haulers Reinforced . | . . . Stealth | -11 -10 -10 --------- Run | Scr Mat Min Distress Signals 1 | . 1 . Communications Jammed . | . . . Distress Signals . | . . . Times Spotted 18 | . 9 9 Peak Tracking Total 6 | . 6 2 Tactical Retreats 2 | . 2 . Traps | -11 -10 -10 ------- Run | Scr Mat Min Traps Triggered . | . . . Indirectly . | . . . Trap Hack Attempts . | . . . Triggered . | . . . Disarmed . | . . . Reprogrammed . | . . . Reused . | . . . Traps Extracted . | . . . Installed . | . . . Triggered . | . . . Machines | -11 -10 -10 ---------- Run | Scr Mat Min Machines Disabled 5 | . 2 3 Max in Single Turn 2 | . 2 1 Machines Sabotaged . | . . . Garrisons Compromised . | . . . Overloaded Fab Kills . | . . . Fab Network Shutdowns . | . . . Hacking | -11 -10 -10 --------- Run | Scr Mat Min Machines Accessed 2 | . 2 . Terminals 2 | . 2 . Fabricators . | . . . Repair Stations . | . . . Recycling Units . | . . . Scanalyzers . | . . . Garrison Access . | . . . Total Hacks 6 | . 6 . Successful 2 | . 2 . Failed 4 | . 4 . Catastrophic . | . . . Database Lockouts . | . . . Manual 5 | . 5 . Terminals 6 | . 6 . Fabricators . | . . . Repair Stations . | . . . Recycling Units . | . . . Scanalyzers . | . . . Garrison Access . | . . . Terminal Hacks . | . . . Fabricator Hacks . | . . . Repair Station Hacks . | . . . Recycling Unit Hacks . | . . . Scanalyzer . | . . . Garrison Access Hacks . | . . . Unauthorized Hacks 2 | . 2 . Terminals 2 | . 2 . Botnet 2 | . 2 . Fabricators . | . . . Repair Stations . | . . . Recycling Units . | . . . Scanalyzers . | . . . Garrison Access . | . . . Data Cores Recovered . | . . . Used . | . . . Hacking Detections 1 | . 1 . Full Trace Events . | . . . Feedback Events . | . . . Feedback Blocked . | . . . Robot Schematics Acquired . | . . . Robots Built . | . . . Matter . | . . . Time . | . . . Total Robot Build Rating . | . . . Part Schematics Acquired . | . . . Parts Built . | . . . Matter . | . . . Time . | . . . Total Part Build Rating . | . . . Parts Repaired . | . . . Time . | . . . Parts Recycled . | . . . Recycled Matter . | . . . Retrieved Matter . | . . . Retrieved Components . | . . . Parts Scanalyzed . | . . . Part Schematics Acquired . | . . . Parts Damaged . | . . . Bothacking | -11 -10 -10 ------------ Run | Scr Mat Min Used RIF Installer . | . . . Robots Hacked . | . . . Non-combat . | . . . Combat . | . . . Robot Hacks Applied . | . . . Relay Couplers Released . | . . . Robots Rewired . | . . . Allies Hacked . | . . . Hacks Repelled . | . . . Allies | -11 -10 -10 -------- Run | Scr Mat Min Total Allies . | . . . Largest Group . | . . . Highest-Rated Group . | . . . Highest-Rated Ally . | . . . Total Orders . | . . . Ally Attacks . | . . . Total Damage . | . . . Kills . | . . . Allies Corrupted . | . . . Allies Melted . | . . . Intel | -11 -10 -10 ------- Run | Scr Mat Min Robot Analysis Total . | . . . Derelict Logs Recovered 1 | . . 1 Drone Launches . | . . . Drone Recoveries . | . . . Exploration | -11 -10 -10 ------------- Run | Scr Mat Min Turns Passed 539 | 66 211 262 Spaces Moved 325 | 51 113 161 Core 11 | 11 . . Treads . | . . . Legs 210 | 40 113 57 Wheels 104 | . . 104 Hover . | . . . Flight . | . . . Fastest Speed 50 | 50 120 90 Average Speed 108 | 104 120 101 Slowest Speed 120 | 120 120 120 Overloaded Moves . | . . . Propulsion Burnouts . | . . . Robots Hopped . | . . . Cave-ins Triggered . | . . . Exploration Rate (%) 20 | 3 23 35 Regions Visited 2 Branch Regions 1 Pre-discovered Areas . | . . . Known Exits Taken . | . . . Unknown Exits Taken 2 | 1 1 . Scrap Searched . | . . . Spaces Dug . | . . . Terrain Destroyed 42 | . . 42 Melee . | . . . Projectile . | . . . AOE 42 | . . 42 Terrain Rammed . | . . . Walls Destroyed . | . . . Machines Disabled . | . . . Actions | -11 -10 -10 --------- Run | Scr Mat Min Total 428 | 60 158 210 Wait 28 | . 26 2 Move 323 | 50 112 161 Hop . | . . . Pick Up 8 | 4 2 2 Fast Attach 7 | 6 1 . Attach 5 | . . 5 Detach . | . . . Swap 2 | . 1 1 Drop 1 | . 1 . Fire 54 | . 15 39 Melee . | . . . Ram . | . . . Kick . | . . . Crush . | . . . Escape Stasis . | . . . Rewire . | . . . Trap . | . . . Miscellaneous . | . . . Route ------- -11/Scrapyard -10/Materials -10/Mines (discovered 2 exits: *Mat x2) History --------- Turn | Location | Event 7 | -11/Scrapyard | Discovered new exit (range 15) 67 | -11/Scrapyard | Entered Materials 249 | -10/Materials | Discovered new exit (range 13) 278 | -10/Materials | Entered Mines 319 | -10/Mines | Build established: Mutant 326 | -10/Mines | Discovered new exit (range 6) 384 | -10/Mines | Core integrity fell below 50% 415 | -10/Mines | Identified exit to Materials 474 | -10/Mines | Lost 5 parts (1p2n2w) 507 | -10/Mines | YI-UF0 nonchalantly dropped a Grenade Launcher on the ground 537 | -10/Mines | Core integrity fell below 20% 540 | -10/Mines | Destroyed by YI-UF0 with YI-UF0's Doublenader Last Messages --------------- 00443_ Destroyed EM Pulse Gun. 00445_ G-34 Mercenary destroyed. 00450_ The unstable cave ceiling collapses. 00451_ Destroyed Lgt. Nuclear Core. 00453_ Destroyed Particle Gun. 00455_ G-47 Trooper destroyed. 00455_ Core Extractor disabled. 00507_ YI-UF0 nonchalantly drops a Grenade Launcher on the ground. 00518_ Y-45 Defender destroyed. 00518_ Wheel destroyed. 00518_ Machine disabled. 00520_ The unstable cave ceiling collapses. 00521_ Acquired Grenade Launcher. 00527_ YI-UF0: "Whaaaaaaaa!" 00527_ The unstable cave ceiling collapses. 00528_ Y-45 Defender destroyed. 00532_ Com. Wheel destroyed. 00534_ Grenade Launcher destroyed. 00540_ The unstable cave ceiling collapses. 00540_ Grenade Launcher destroyed. Map ----- +----------------------------------------------------+ | ?????????????# #?????# ##### * #?? | | ????????????? ###?## #### ## # ##?? | | ????????????# ## #?###### #??? | | ????????????# #??????# #??? | | ???????????? ##??????## ##??? | | ???????????? ## #????????# #???? | | ??????????????????## #????????# #???? | | ???????????????????# #????????# #???? | | ???????????????????## #????????# #???? | | ????????????????????## #????????# #???? | | ?????????????????????## ##????????# #???? | | ??????????????????????## #?????????#%#???? | | ???????????????????????# #?????????#%#???? | | ???????????????????????# # #??????### ####? | | ???????????????????????# # #??????# #? | | ???????????????????????# # ##??????# "" #? | | ???????????????????????# # #???????# """ #? | | ???????????????????????# ## ##???????# """ #? | | ??